fUSD/lending_fUSD_20260322
["ID","MTS","AMOUNT","RATE_DAILY","PERIOD"]
[408708841,1774163441966,-3215.911299,0.00015991,2]
[408708842,1774163441978,-151.0,0.00015997,2]
[408708843,1774163441989,-1240.67378239,0.00015999,5]
[408708844,1774163442001,-155.0,0.00015999,2]
[408708845,1774163442013,-4827984.34078248,0.00016,2]
[408708846,1774163442035,-77595.84488391,0.00016,2]
[408708847,1774163442049,-28904.19306324,0.00016,2]
[408708848,1774163442086,-3626.75805194,0.00015418,2]
[408708849,1774163442099,-963.09961576,0.00015418,2]
[408708852,1774163443208,-886.76216215,0.00015418,2]
[408708854,1774163443730,-531.38017015,0.00015418,2]
[408708855,1774163443750,-10.01847316,0.00016,2]
[408708857,1774163443788,-2606.705,0.00016,2]
[408708859,1774163443800,-369.21683543,0.00016,2]
[408708861,1774163445804,-946.16,0.000145,2]
[408708862,1774163445817,-5706.00362237,0.000145,2]
[408708863,1774163445865,-5120.57884419,0.000145,2]
[408708864,1774163445925,-4045.5158667,0.000145,2]
[408708916,1774163657552,200.0,0.00012,2]
[408708918,1774163989733,166.66,0.00012123,2]
[408708919,1774163990121,166.66,0.00012378,2]
[408708920,1774163992404,-171.0,0.000125,2]
[408708921,1774163992617,-153.0,0.000125,2]
[408708922,1774164005942,171.0,0.000125,2]
[408708923,1774164007999,153.0,0.000125,2]
[408708924,1774164065796,153.0,0.000125,2]
[408708925,1774164124510,153.0,0.000125,2]
[408708927,1774164383250,3275.87797803,8e-05,2]
[408708928,1774164432651,-171.0,0.000125,2]
[408708929,1774164432681,-153.0,0.000125,2]
[408708930,1774164449126,5000.01,0.000103,5]
[408708931,1774164449148,532.99,0.000103,5]
[408708932,1774164459417,150.0,0.00012526,2]
[408708933,1774164486690,154.0,0.00012583,2]
[408708934,1774164490549,167.0,0.00012583,2]
[408708935,1774164497953,3096.02142,0.0001257,2]
[408708936,1774164531222,899.99858,0.0001242,2]
[408708937,1774164531244,5000.01,0.0001242,2]
[408708938,1774164531267,5000.01,0.0001242,2]
[408708939,1774164531289,5000.01,0.0001242,2]
[408708940,1774164531311,5000.01,0.0001242,2]
[408708941,1774164531334,2491.33142,0.0001242,2]
[408708943,1774164538352,5000.01,9.5e-05,3]
[408708944,1774164538376,5000.01,9.5e-05,3]
[408708945,1774164538398,5000.01,9.5e-05,3]
[408708946,1774164538420,5000.01,9.5e-05,3]
[408708947,1774164538445,6860.67858,9.5e-05,3]
[408708948,1774164538467,10000.01,9.5e-05,3]
[408708949,1774164538489,10000.01,9.5e-05,3]
[408708950,1774164538511,10000.01,9.5e-05,3]
[408708951,1774164538533,10000.01,9.5e-05,3]
[408708952,1774164538555,10000.01,9.5e-05,3]
[408708953,1774164538579,10000.01,9.5e-05,3]
[408708954,1774164538602,10000.01,9.5e-05,3]
[408708955,1774164538624,10000.01,9.5e-05,3]
[408708956,1774164538650,10000.01,9.5e-05,3]
[408708957,1774164541808,-300.0,9.499e-05,2]
[408708958,1774164545555,-99.76,9.5e-05,3]
[408708959,1774164545609,-5000.01,9.5e-05,3]
[408708960,1774164545624,-5000.01,9.5e-05,3]
[408708961,1774164547493,-5000.01,9.5e-05,3]
[408708962,1774164547610,-5000.01,9.5e-05,3]
[408708963,1774164547706,-5000.01,9.5e-05,3]
[408708964,1774164547818,-5000.01,9.5e-05,3]
[408708965,1774164547922,-5000.01,9.5e-05,3]
[408708966,1774164548017,-5000.01,9.5e-05,3]
[408708967,1774164548154,-5000.01,9.5e-05,3]
[408708968,1774164548270,-5000.01,9.5e-05,3]
[408708969,1774164548360,-5000.01,9.5e-05,3]
[408708970,1774164548463,-5000.01,9.5e-05,3]
[408708971,1774164553557,-5000.01,9.5e-05,3]
[408708972,1774164559603,-5000.01,9.5e-05,3]
[408708973,1774164562754,-5000.01,9.5e-05,3]
[408708974,1774164562953,-5000.01,9.5e-05,3]
[408708975,1774164568686,-5000.01,9.5e-05,3]
[408708976,1774164568791,-5000.01,9.5e-05,3]
[408708977,1774164570145,-51845.0527,9.5e-05,3]
[408708978,1774164573721,2467.196649,9.452e-05,2]
[408708979,1774164576553,-4.34,9.5e-05,3]
[408708980,1774164579610,-10000.01,9.5e-05,3]
[408708981,1774164585627,-10000.01,9.5e-05,3]
[408708982,1774164602085,-300.0,9.499e-05,2]
[408708983,1774164602113,-1200.0,9.499e-05,2]
[408708984,1774164602624,150.0,9.499e-05,2]
[408708985,1774164607862,1850.01,7.945e-05,2]
[408708986,1774164607885,1417.084528,7.945e-05,2]
[408708987,1774164608637,300.0,9.499e-05,2]
[408708995,1774164632028,-1230.22,9.5e-05,3]
[408708996,1774164632039,-251519.14365319,9.5e-05,3]
[408708997,1774164632051,-2065.57271914,9.5e-05,3]
[408708998,1774164632063,-6853.74814384,9.5e-05,3]
[408708999,1774164632074,-1254.41808677,9.5e-05,3]
[408709000,1774164632085,-487.0242411,9.5e-05,3]
[408709001,1774164632159,-1623.11679656,9.5e-05,3]
[408709002,1774164632170,-11942.93179783,9.5e-05,3]
[408709003,1774164632181,-336.37939,9.5e-05,3]
[408709004,1774164632221,-4808.33614223,9.5e-05,3]
[408709005,1774164632232,-500.0,9.5e-05,3]
[408709006,1774164632283,-7211.0,9.5e-05,3]
[408709016,1774164638169,-401.616215,9.5e-05,3]
[408709017,1774164638185,-365.53881717,9.5e-05,3]
[408709018,1774164638292,-76061.16731311,9.5e-05,3]
[408709207,1774164640448,-943.78799,9.5e-05,3]
[408709220,1774164640566,-1284.8160663,9.5e-05,3]
[408709223,1774164640581,-23869.0822872,9.5e-05,3]
[408709225,1774164640593,-200.0,9.5e-05,2]
[408709227,1774164640605,-245.0,9.5e-05,2]
[408709229,1774164640617,-2919.21032397,9.5e-05,2]
[408709232,1774164640630,-174.0,9.5e-05,3]
[408709234,1774164640643,-153.0,9.5e-05,3]
[408709236,1774164640655,-164.0,9.5e-05,3]
[408709239,1774164640668,-250.0,9.975e-05,2]
[408709241,1774164640680,-10837.0,0.0001,2]
[408709243,1774164640691,-5533.0,0.000101,3]
[408709245,1774164640702,-174.0,0.00010158,3]
[408709247,1774164640712,-5533.0,0.000103,5]
[408709249,1774164640722,-150.0,0.000104,2]
[408709251,1774164640732,-1680.0,0.00010449,2]
[408709253,1774164640742,-255.0,0.00010449,2]
[408709255,1774164640752,-420.0,0.00010449,2]
[408709257,1774164640762,-250.0,0.0001045,2]
[408709283,1774164640998,-4602.82831729,0.0001045,2]
[408709287,1774164641021,-397.17168271,0.0001045,2]
[408709289,1774164641031,-5000.0,0.0001045,2]
[408709291,1774164641041,-153.0,0.00010462,3]
[408709293,1774164641050,-174.0,0.00010816,3]
[408709295,1774164641060,-4056.67943766,0.000109,2]
[408709297,1774164641069,-4056.6794376,0.000109,2]
[408709299,1774164641079,-4056.6794376,0.00011257,2]
[408709301,1774164641089,-153.0,0.00011423,3]
[408709303,1774164641098,-174.0,0.00011474,3]
[408709305,1774164641107,-2351.0,0.00011494,2]
[408709307,1774164641116,-433.0,0.00011494,2]
[408709309,1774164641126,-180.0,0.00011494,2]
[408709311,1774164641135,-197.2689,0.000118,2]
[408709313,1774164641144,-155.23,0.00011861,2]
[408709315,1774164641156,-303.28849393,0.00011866,2]
[408709317,1774164641166,-174.0,0.00012132,3]
[408709319,1774164641175,-4056.6794376,0.00012186,2]
[408709321,1774164641185,-153.0,0.00012385,3]
[408709323,1774164641195,-500.0,0.000124,2]
[408709324,1774164641204,-200.0,0.000125,4]
[408709326,1774164641214,-400.0,0.000126,4]
[408709328,1774164641223,-166.66,0.00012633,2]
[408709330,1774164641233,-3292.0,0.00012643,2]
[408709332,1774164641242,-736.0,0.00012643,2]
[408709334,1774164641251,-5782.8,0.00012666,2]
[408709336,1774164641260,-600.0,0.000127,4]
[408709338,1774164641270,-174.0,0.00012789,3]
[408709340,1774164641279,-591.57,0.0001279,2]
[408709342,1774164641288,-800.0,0.000128,4]
[408709344,1774164641298,-166.66,0.00012888,2]
[408709346,1774164641307,-1000.0,0.000129,4]
[408709348,1774164641317,-166.66,0.00013019,2]
[408709350,1774164641328,-3171.13653461,0.0001305,2]
[408709352,1774164641339,-4056.6794376,0.00013114,2]
[408709354,1774164641349,-166.66,0.00013144,2]
[408709356,1774164641359,-13043.644441,0.00013173,2]
[408709358,1774164641369,-259.4335,0.000132,2]
[408709360,1774164641379,-286.4839709,0.00013262,2]
[408709362,1774164641389,-1000.0,0.0001327,2]
[408709364,1774164641403,-1322.98206344,0.00013271,2]
[408709366,1774164641412,-1322.98206344,0.00013271,2]
[408709368,1774164641421,-1322.98206344,0.00013271,2]
[408709370,1774164641431,-1322.98206344,0.00013271,2]
[408709372,1774164641441,-1322.98206344,0.00013271,2]
[408709374,1774164641450,-1322.98206344,0.00013271,2]
[408709376,1774164641459,-1322.98206344,0.00013271,2]
[408709378,1774164641471,-1322.98206344,0.00013271,2]
[408709380,1774164641480,-1322.98206344,0.00013271,2]
[408709382,1774164641490,-1322.98206344,0.00013271,2]
[408709384,1774164641499,-1322.98206344,0.00013271,2]
[408709386,1774164641510,-1322.98206344,0.00013271,2]
[408709388,1774164641519,-1322.98206344,0.00013271,2]
[408709390,1774164641530,-1322.98206344,0.00013271,2]
[408709392,1774164641539,-1322.98206344,0.00013271,2]
[408709394,1774164641548,-1322.98206344,0.00013271,2]
[408709396,1774164641557,-1322.98206344,0.00013271,2]
[408709398,1774164641567,-1322.98206344,0.00013271,2]
[408709400,1774164641576,-1322.98206344,0.00013271,2]
[408709402,1774164641585,-1322.98206344,0.00013271,2]
[408709404,1774164641594,-1322.98206344,0.00013271,2]
[408709406,1774164641604,-1322.98206344,0.00013271,2]
[408709408,1774164641613,-1322.98206344,0.00013271,2]
[408709410,1774164641622,-1322.98206344,0.00013271,2]
[408709412,1774164641632,-1322.98206344,0.00013271,2]
[408709414,1774164641642,-1322.98206344,0.00013271,2]
[408709416,1774164641651,-1322.98206344,0.00013271,2]
[408709418,1774164641660,-1322.98206344,0.00013271,2]
[408709420,1774164641669,-1322.98206344,0.00013271,2]
[408709422,1774164641678,-1322.98206344,0.00013271,2]
[408709424,1774164641688,-1322.98206344,0.00013271,2]
[408709426,1774164641697,-1322.98206344,0.00013271,2]
[408709428,1774164641706,-1322.98206344,0.00013271,2]
[408709430,1774164641716,-1322.98206344,0.00013271,2]
[408709432,1774164641725,-1322.98206344,0.00013271,2]
[408709434,1774164641734,-1322.98206344,0.00013271,2]
[408709436,1774164641743,-1322.98206344,0.00013271,2]
[408709438,1774164641753,-1322.98206344,0.00013271,2]
[408709440,1774164641762,-1322.98206344,0.00013271,2]
[408709442,1774164641772,-1322.98206344,0.00013271,2]
[408709444,1774164641782,-1322.98206344,0.00013271,2]
[408709446,1774164641791,-1322.98206344,0.00013271,2]
[408709448,1774164641801,-1322.98206344,0.00013271,2]
[408709451,1774164641811,-1322.98206344,0.00013271,2]
[408709452,1774164641820,-1322.98206344,0.00013271,2]
[408709454,1774164641831,-1322.98206344,0.00013271,2]
[408709457,1774164641840,-1322.98206344,0.00013271,2]
[408709459,1774164641850,-1322.98206344,0.00013271,2]
[408709460,1774164641859,-1322.98206344,0.00013271,2]
[408709462,1774164641868,-1322.98206344,0.00013271,2]
[408709465,1774164641878,-1322.98206344,0.00013271,2]
[408709467,1774164641887,-1322.98206344,0.00013271,2]
[408709468,1774164641898,-2144566.8083,0.00013272,2]
[408709471,1774164641907,-500.0,0.00013273,2]
[408709473,1774164641917,-153.0,0.00013346,3]
[408709475,1774164641926,-19837.6,0.00013372,2]
[408709477,1774164641937,-150.0,0.00013375,2]
[408709478,1774164641945,-150.0,0.00013375,2]
[408709480,1774164641955,-200.0,0.00013375,2]
[408709483,1774164641966,-166.66,0.00013399,2]
[408709485,1774164641976,-286.4839709,0.0001344,2]
[408709487,1774164641986,-174.0,0.00013447,3]
[408709489,1774164641995,-166.66,0.00013449,2]
[408709491,1774164642004,-1500000.0,0.0001345,2]
[408709493,1774164642013,-1600.0,0.00013454,2]
[408709495,1774164642023,-502.51043512,0.00013473,2]
[408709497,1774164642032,-500.48919478,0.00013473,2]
[408709499,1774164642042,-13043.644441,0.00013475,2]
[408709501,1774164642051,-339.73402716,0.000135,2]
[408709503,1774164642061,-300.0,0.000135,4]
[408709505,1774164642071,-1000.0,0.00013548,2]
[408709507,1774164642081,-2848.731,0.00013549,2]
[408709509,1774164642090,-175.61,0.00013549,2]
[408709511,1774164642100,-9438.02701927,0.00013549,2]
[408709513,1774164642109,-250.0,0.00013549,2]
[408709515,1774164642119,-14929.8385,0.00013549,2]
[408709517,1774164642128,-258.63753161,0.0001355,2]
[408709519,1774164642139,-18986.5356,0.0001355,2]
[408709521,1774164642148,-2500.0,0.0001355,2]
[408709523,1774164642157,-319.79425984,0.00013573,2]
[408709525,1774164642166,-600.0,0.000136,4]
[408709527,1774164642175,-297.11648211,0.00013642,2]
[408709529,1774164642185,-200.0,0.00013642,2]
[408709531,1774164642194,-209.71,0.00013649,2]
[408709533,1774164642204,-500.0,0.00013649,2]
[408709535,1774164642214,-500.0,0.00013649,2]
[408709537,1774164642224,-500.0,0.00013649,2]
[408709539,1774164642233,-500.0,0.00013649,2]
[408709541,1774164642243,-334.11164494,0.00013649,2]
[408709543,1774164642253,-493.6514,0.00013649,2]
[408709545,1774164642263,-500.0,0.00013698,2]
[408709547,1774164642273,-500.0,0.00013698,2]
[408709549,1774164642283,-500.0,0.00013698,2]
[408709551,1774164642293,-500.0,0.00013698,2]
[408709553,1774164642303,-500.0,0.00013698,2]
[408709555,1774164642313,-520.72935856,0.00013698,2]
[408709557,1774164642322,-824.87,0.00013699,2]
[408709559,1774164642332,-1209.03,0.00013699,2]
[408709561,1774164642343,-6780.55,0.00013699,2]
[408709563,1774164642352,-299.99,0.00013699,2]
[408709565,1774164642362,-999.99,0.00013699,2]
[408709567,1774164642371,-9350.46,0.00013699,2]
[408709569,1774164642381,-150.99,0.00013699,2]
[408709571,1774164642393,-9999.99,0.00013699,2]
[408709573,1774164642404,-272.97360735,0.00013699,2]
[408709575,1774164642414,-191.08152514,0.00013699,2]
[408709577,1774164642426,-1460.56,0.000137,2]
[408709579,1774164642436,-211.46,0.000137,2]
[408709581,1774164642446,-1253.33,0.000137,2]
[408709583,1774164642455,-2358.65,0.000137,2]
[408709585,1774164642464,-7279.16,0.000137,2]
[408709587,1774164642477,-3304.38,0.000137,2]
[408709589,1774164642486,-1000.0,0.000137,5]
[408709591,1774164642495,-5000.0,0.0001375,2]
[408709593,1774164642505,-250.0,0.0001375,2]
[408709595,1774164642514,-13043.644441,0.00013778,2]
[408709597,1774164642524,-1300.0,0.000138,5]
[408709599,1774164642533,-9438.02701924,0.0001381,2]
[408709601,1774164642542,-166.66,0.00013878,2]
[408709603,1774164642552,-300.0,0.00013897,2]
[408709605,1774164642560,-300.0,0.00013897,2]
[408709607,1774164642570,-600.0,0.00013897,2]
[408709609,1774164642579,-195.0,0.00013897,2]
[408709611,1774164642589,-195.0,0.00013897,2]
[408709613,1774164642599,-195.0,0.00013897,2]
[408709616,1774164642608,-195.0,0.00013897,2]
[408709617,1774164642617,-195.0,0.00013897,2]
[408709620,1774164642627,-1700.0,0.000139,5]
[408709621,1774164642636,-200.0,0.00013904,2]
[408709624,1774164642647,-4609.0,0.00013907,2]
[408709626,1774164642657,-1252.0,0.00013907,2]
[408709628,1774164642667,-209.71,0.00013923,2]
[408709630,1774164642676,-405.15,0.00013951,2]
[408709632,1774164642685,-319.79425984,0.00013961,2]
[408709634,1774164642695,-79016.05291952,0.0001399,2]
[408709636,1774164642704,-322.049604,0.00014,2]
[408709638,1774164642713,-521.0,0.00014,2]
[408709639,1774164642723,-4056.6794376,0.00014043,2]
[408709642,1774164642732,-9438.02701924,0.00014071,2]
[408709643,1774164642741,-13043.644441,0.0001408,2]
[408709646,1774164642751,-700.0,0.00014082,2]
[408709648,1774164642761,-174.0,0.00014105,3]
[408709649,1774164642770,-211.43898215,0.0001419,2]
[408709651,1774164642780,-209.71,0.00014197,2]
[408709653,1774164642789,-3240.0,0.00014261,2]
[408709655,1774164642800,-153.0,0.00014308,3]
[408709657,1774164642809,-166.66,0.00014308,2]
[408709659,1774164642819,-9438.02701924,0.00014331,2]
[408709661,1774164642828,-319.79425984,0.00014349,2]
[408709663,1774164642838,-600.0,0.00014356,2]
[408709664,1774164642847,-700.0,0.00014356,2]
[408709665,1774164642861,-13043.644441,0.00014382,2]
[408709666,1774164642877,-2403.0,0.000144,2]
[408709667,1774164642886,-209.71,0.00014471,2]
[408709668,1774164642896,-347.47666717,0.00014473,2]
[408709669,1774164642905,-500.0,0.00014473,2]
[408709670,1774164642914,-500.0,0.00014473,2]
[408709671,1774164642924,-500.0,0.00014473,2]
[408709672,1774164642933,-500.70382414,0.00014473,2]
[408709673,1774164642942,-500.43058459,0.00014473,2]
[408709674,1774164642951,-500.4848322,0.00014473,2]
[408709675,1774164642961,-500.0,0.00014473,2]
[408709677,1774164642970,-500.74920901,0.00014473,2]
[408709678,1774164642979,-500.0,0.00014473,2]
[408709679,1774164642989,-500.0,0.00014473,2]
[408709681,1774164642998,-500.0,0.00014473,2]
[408709682,1774164643008,-500.0,0.00014473,2]
[408709684,1774164643018,-500.55967201,0.00014473,2]
[408709686,1774164643027,-500.0,0.00014473,2]
[408709688,1774164643036,-500.0,0.00014473,2]
[408709690,1774164643046,-154.38343801,0.00014473,2]
[408709692,1774164643056,-151.0,0.00014497,2]
[408709694,1774164643065,-1240.67378239,0.00014499,5]
[408709696,1774164643075,-341.1878,0.000145,2]
[408709698,1774164643085,-9438.02701924,0.00014592,2]
[408709700,1774164643095,-1000.0,0.00014606,2]
[408709702,1774164643104,-13043.644441,0.00014685,2]
[408709704,1774164643113,-164.89346,0.000147,7]
[408709706,1774164643122,-160.0,0.0001472,7]
[408709707,1774164643131,-319.79425984,0.00014737,2]
[408709709,1774164643140,-166.66,0.00014738,2]
[408709711,1774164643150,-209.71612025,0.00014745,2]
[408709713,1774164643160,-174.0,0.00014763,3]
[408709715,1774164643169,-500.0,0.00014826,2]
[408709717,1774164643179,-500.0,0.00014826,2]
[408709720,1774164643188,-500.0,0.00014826,2]
[408709722,1774164643198,-500.0,0.00014826,2]
[408709724,1774164643207,-500.0,0.00014826,2]
[408709726,1774164643217,-500.0,0.00014826,2]
[408709728,1774164643227,-500.0,0.00014826,2]
[408709729,1774164643237,-500.0,0.00014826,2]
[408709731,1774164643247,-500.0,0.00014826,2]
[408709734,1774164643257,-500.0,0.00014826,2]
[408709735,1774164643267,-500.0,0.00014826,2]
[408709737,1774164643277,-588.29991722,0.00014826,2]
[408709739,1774164643287,-9438.02701924,0.00014853,2]
[408709742,1774164643297,-247.340192,0.0001493,7]
[408709744,1774164643306,-500.0,0.00014933,2]
[408709745,1774164643316,-500.44177829,0.00014933,2]
[408709747,1774164643325,-390.12270077,0.00014933,2]
[408709749,1774164643335,-500.0,0.00014933,2]
[408709751,1774164643344,-4056.6794376,0.00014971,2]
[408709753,1774164643354,-13043.644441,0.00014987,2]
[408709755,1774164643363,-250.0,0.00015,2]
[408709757,1774164643373,-2063.71846388,0.00015,2]
[408709759,1774164643383,-2428.27013508,0.00015,14]
[408709761,1774164643395,-8034.12425603,0.00015,2]
[408709763,1774164643405,-1042.04499952,0.00015,7]
[408709765,1774164643414,-324.633507,0.00015004,7]
[408709767,1774164643424,-160.0,0.00015004,7]
[408709769,1774164643434,-1345.0,0.00015012,2]
[408709771,1774164643444,-2466.0,0.00015012,2]
[408709774,1774164643453,-1000.0,0.00015021,2]
[408709775,1774164643462,-1001.53007131,0.00015021,2]
[408709777,1774164643473,-1000.0,0.00015021,2]
[408709779,1774164643483,-1000.0,0.00015021,2]
[408709782,1774164643493,-1000.0,0.00015021,2]
[408709783,1774164643506,-1000.0,0.00015021,2]
[408709786,1774164643516,-1000.0,0.00015021,2]
[408709788,1774164643525,-1000.0,0.00015021,2]
[408709790,1774164643535,-713.64434561,0.00015021,2]
[408709791,1774164643545,-655.4067427,0.00015021,2]
[408709793,1774164643554,-161.0,0.0001504,2]
[408709795,1774164643563,-537.35,0.00015068,2]
[408709797,1774164643573,-9438.02701924,0.00015114,2]
[408709799,1774164643582,-319.79425984,0.00015124,2]
[408709801,1774164643591,-1600.0,0.00015136,2]
[408709803,1774164643601,-160.0,0.00015141,2]
[408709805,1774164643610,-979.16666667,0.00015141,2]
[408709807,1774164643619,-160.0,0.00015141,2]
[408709809,1774164643628,-166.66,0.00015168,2]
[408709812,1774164643638,-5113.74212955,0.000152,2]
[408709813,1774164643647,-5000.0,0.000152,2]
[408709815,1774164643656,-5000.0,0.000152,2]
[408709817,1774164643666,-5000.0,0.000152,2]
[408709819,1774164643675,-1478.0,0.00015245,2]
[408709821,1774164643685,-153.0,0.00015269,3]
[408709823,1774164643694,-13043.644441,0.00015289,2]
[408709826,1774164643703,-6453.0,0.00015298,2]
[408709828,1774164643713,-2129.0,0.00015303,2]
[408709830,1774164643722,-9999.99,0.0001531,2]
[408709833,1774164643731,-10903.52,0.0001531,2]
[408709836,1774164643740,-2403.0,0.0001536,2]
[408709839,1774164643749,-1568.0,0.0001536,2]
[408709841,1774164643758,-239.0,0.0001536,2]
[408709843,1774164643767,-350.0,0.00015371,2]
[408709845,1774164643776,-9438.02701924,0.00015374,2]
[408709847,1774164643785,-308.47240642,0.00015391,2]
[408709849,1774164643794,-1478.0,0.00015392,2]
[408709851,1774164643803,-202.98,0.00015403,30]
[408709853,1774164643812,-202.99,0.00015403,30]
[408709855,1774164643821,-174.0,0.00015421,3]
[408709857,1774164643830,-700.0,0.00015452,2]
[408709858,1774164643840,-1478.0,0.00015467,2]
[408709860,1774164643849,-1000.0,0.00015481,2]
[408709862,1774164643859,-1000.0,0.00015481,2]
[408709864,1774164643869,-200.0,0.000155,5]
[408709866,1774164643879,-152.0,0.00015507,3]
[408709868,1774164643888,-319.79425984,0.00015512,2]
[408709870,1774164643897,-150.0,0.00015563,2]
[408709872,1774164643906,-284.69808,0.00015565,2]
[408709874,1774164643916,-1500.0,0.00015568,2]
[408709876,1774164643925,-573.03260881,0.00015568,2]
[408709878,1774164643935,-1500.0,0.00015568,2]
[408709880,1774164643944,-1500.0,0.00015568,2]
[408709882,1774164643953,-259.99072283,0.00015568,2]
[408709885,1774164643966,-222.68518983,0.00015568,2]
[408709887,1774164643975,-203.0,0.00015576,2]
[408709889,1774164643984,-1478.0,0.0001559,2]
[408709891,1774164643993,-13043.644441,0.00015592,2]
[408709893,1774164644002,-300.0,0.000156,5]
[408709895,1774164644011,-200.0,0.000156,5]
[408709897,1774164644020,-3003.0,0.000156,2]
[408709899,1774164644029,-1478.0,0.00015624,2]
[408709901,1774164644039,-9438.02701924,0.00015635,2]
[408709903,1774164644049,-150.0,0.00015661,2]
[408709922,1774164644219,-1261.0,0.00015661,2]
[408709924,1774164644229,-1215.0,0.00015661,2]
[408709926,1774164644239,-924.0,0.00015661,2]
[408709929,1774164644248,-1478.0,0.00015675,2]
[408709931,1774164644258,-171.81,0.00015679,2]
[408709932,1774164644268,-2403.2155048,0.0001568,2]
[408709934,1774164644277,-2403.0,0.0001568,2]
[408709936,1774164644287,-1478.0,0.00015692,2]
[408709939,1774164644297,-300.0,0.000157,5]
[408709941,1774164644309,-200.0,0.000157,5]
[408709943,1774164644319,-780.0,0.00015712,2]
[408709945,1774164644328,-204.451999,0.00015713,2]
[408709947,1774164644338,-600.0,0.00015726,2]
[408709949,1774164644347,-700.0,0.00015726,2]
[408709951,1774164644357,-250.0,0.00015755,2]
[408709953,1774164644366,-1000.0,0.00015798,2]
[408709955,1774164644376,-1460.56,0.000158,2]
[408709957,1774164644386,-211.46,0.000158,2]
[408709959,1774164644398,-2358.65,0.000158,2]
[408709961,1774164644408,-7279.16,0.000158,2]
[408709963,1774164644418,-3304.38,0.000158,2]
[408709965,1774164644429,-300.0,0.000158,5]
[408709967,1774164644439,-200.0,0.000158,5]
[408709969,1774164644448,-1800.0,0.00015827,5]
[408709971,1774164644458,-1443.0,0.00015827,5]
[408709973,1774164644469,-500.0,0.00015836,2]
[408709975,1774164644479,-10265.07525548,0.0001584,2]
[408709977,1774164644489,-475.75812515,0.0001584,2]
[408709979,1774164644502,-250.70323,0.0001584,2]
[408709981,1774164644512,-250.70323,0.0001584,2]
[408709983,1774164644522,-250.70322,0.0001584,2]
[408709985,1774164644531,-824.87,0.00015862,2]
[408709987,1774164644542,-500.0,0.00015872,2]
[408709989,1774164644552,-200.0,0.00015872,2]
[408709991,1774164644561,-2000.0,0.0001589,2]
[408709993,1774164644572,-13043.644441,0.00015894,2]
[408709995,1774164644581,-9438.02701924,0.00015896,2]
[408709997,1774164644591,-1253.33,0.000159,2]
[408709999,1774164644601,-161.0,0.000159,2]
[408710001,1774164644611,-162.0,0.000159,2]
[408710003,1774164644621,-73983.85660975,0.000159,2]
[408710005,1774164644631,-300.0,0.000159,5]
[408710007,1774164644641,-319.79425984,0.000159,2]
[408710009,1774164644650,-719.76929868,0.000159,2]
[408710011,1774164644661,-200.0,0.000159,5]
[408710013,1774164644670,-448.705,0.000159,2]
[408710016,1774164644681,-202.98,0.00015951,30]
[408710017,1774164644691,-202.99,0.00015951,30]
[408710020,1774164644705,-286.4839709,0.0001599,2]
[408710022,1774164644716,-1000.0,0.00015991,2]
[408710024,1774164644725,-1000.0,0.00015991,2]
[408710026,1774164644735,-1000.0,0.00015991,2]
[408710028,1774164644744,-1000.0,0.00015991,2]
[408710030,1774164644753,-3063.3938977,0.00015994,2]
[408710032,1774164644763,-1382.304558,0.00015994,2]
[408710034,1774164644773,-5679.7780095,0.00015994,2]
[408710036,1774164644783,-24433.0950574,0.00015994,2]
[408710038,1774164644792,-162.6142527,0.00015994,2]
[408710040,1774164644801,-380450.0198317,0.00015994,2]
[408710042,1774164644810,-15762.4554676,0.00015994,2]
[408710044,1774164644819,-275154.3078049,0.00015994,2]
[408710046,1774164644828,-877.6775988,0.00015994,2]
[408710048,1774164644838,-158.001456,0.00015994,2]